fUST/lending_fUST_20240928
["ID","MTS","AMOUNT","RATE_DAILY","PERIOD"]
[339362402,1727477442212,-151.0,0.0002938,7]
[339362403,1727477442222,-288.892776,0.0002938,7]
[339362404,1727477442233,-288.892776,0.0002938,7]
[339362405,1727477442243,-151.0,0.0002938,7]
[339362406,1727477442253,-997.80482938,0.00029387,2]
[339362407,1727477442262,-151.0,0.0002939,7]
[339362408,1727477442272,-288.892776,0.0002939,7]
[339362409,1727477442282,-288.892776,0.0002939,7]
[339362410,1727477442291,-260.420914,0.0002939,7]
[339362411,1727477442300,-151.0,0.0002939,7]
[339362412,1727477442309,-164.199017,0.0002939,7]
[339362413,1727477442319,-164.199017,0.0002939,7]
[339362414,1727477442328,-151.0,0.0002939,7]
[339362415,1727477442338,-4694.61980962,0.0002939,4]
[339362416,1727477442347,-157.632964,0.0002939,7]
[339362417,1727477442356,-157.632964,0.0002939,7]
[339362418,1727477442365,-1000.0,0.0002939,28]
[339362419,1727477442375,-750.08171426,0.0002939,28]
[339362420,1727477442384,-151.580838,0.0002939,7]
[339362421,1727477442393,-151.0,0.0002939,7]
[339362422,1727477442403,-50000.0,0.000294,2]
[339362423,1727477442413,-4014.48,0.000294,14]
[339362424,1727477442424,-1439.56,0.000294,14]
[339362425,1727477442434,-2031.5,0.000294,14]
[339362426,1727477442445,-165.47,0.000294,14]
[339362427,1727477442454,-191.96,0.000294,7]
[339362428,1727477442463,-151.0,0.000294,7]
[339362429,1727477442474,-150.112233,0.000294,6]
[339362430,1727477442483,-150.112233,0.000294,10]
[339362431,1727477442493,-150.112233,0.000294,5]
[339362432,1727477442502,-150.112233,0.000294,8]
[339362433,1727477442511,-150.112233,0.000294,7]
[339362434,1727477442520,-150.112233,0.000294,10]
[339362435,1727477442530,-150.112233,0.000294,5]
[339362436,1727477442539,-288.892776,0.000294,7]
[339362437,1727477442549,-157.412191,0.000294,7]
[339362438,1727477442558,-288.892776,0.000294,7]
[339362439,1727477442567,-157.412191,0.000294,7]
[339362440,1727477442576,-151.0,0.000294,7]
[339362441,1727477442587,-151.0,0.000294,7]
[339362442,1727477442598,-164.199017,0.000294,7]
[339362443,1727477442610,-164.199017,0.000294,7]
[339362444,1727477442620,-151.0,0.000294,7]
[339362445,1727477442631,-157.632964,0.000294,7]
[339362446,1727477442642,-157.632964,0.000294,7]
[339362447,1727477442652,-151.0,0.000294,7]
[339362448,1727477442662,-5614.01679576,0.00029466,2]
[339362449,1727477442674,-163.79505621,0.00029466,2]
[339362450,1727477442684,-150.112233,0.000298,10]
[339362451,1727477442693,-151.0,0.0002999,7]
[339362452,1727477442704,-164.199017,0.0002999,7]
[339362453,1727477442715,-164.199017,0.0002999,7]
[339362454,1727477442725,-151.0,0.0002999,7]
[339362455,1727477442739,-157.632964,0.0002999,7]
[339362456,1727477442749,-157.632964,0.0002999,7]
[339362457,1727477442758,-504.0,0.0003,2]
[339362458,1727477442768,-1209.46039924,0.0003,3]
[339362459,1727477442777,-263.0,0.0003,2]
[339362460,1727477442786,-150.0,0.00030129,5]
[339362461,1727477442797,-151.025,0.000302,2]
[339362462,1727477442807,-150.112233,0.000303,9]
[339362463,1727477442819,-518.0,0.000303,2]
[339362464,1727477442831,-150.790631,0.000303,2]
[339362465,1727477442842,-504.0,0.00030411,2]
[339362466,1727477442853,-150.112233,0.000309,9]
[339362467,1727477442864,-587.0,0.00030992,2]
[339362468,1727477442875,-615.94,0.000311,7]
[339362469,1727477442889,-475.0,0.00031334,2]
[339362470,1727477442898,-150.112233,0.000314,10]
[339362471,1727477442908,-504.0,0.00031644,2]
[339362473,1727477442918,-1209.46039924,0.000318,3]
[339362474,1727477442928,-150.112233,0.000319,6]
[339362476,1727477442937,-163.0,0.0003205,120]
[339362477,1727477442948,-150.112233,0.000324,7]
[339362479,1727477442958,-500.0,0.00032876,30]
[339362480,1727477442968,-150.112233,0.000329,7]
[339362481,1727477442977,-263.0,0.00033,2]
[339362482,1727477442987,-511.0,0.00033226,2]
[339362483,1727477442997,-150.112233,0.000334,9]
[339362484,1727477443007,-500.0,0.00033424,31]
[339362485,1727477443018,-163.0,0.0003352,120]
[339362486,1727477443027,-300.0,0.00033523,2]
[339362487,1727477443037,-1209.46039924,0.000336,3]
[339362488,1727477443046,-150.112233,0.000339,8]
[339362489,1727477443058,-500.0,0.00033972,32]
[339362490,1727477443068,-288.892776,0.00034383,14]
[339362491,1727477443079,-288.892776,0.00034383,14]
[339362492,1727477443088,-7348.89193862,0.00034462,120]
[339362493,1727477443101,-150.0,0.00034462,14]
[339362494,1727477443112,-150.0,0.00034462,14]
[339362495,1727477443122,-200.0,0.00034462,14]
[339362496,1727477443134,-633.47296031,0.0003452,33]
[339362497,1727477443145,-500.0,0.00034799,2]
[339362498,1727477443156,-157.412191,0.000348,14]
[339362499,1727477443166,-157.412191,0.000348,14]
[339362500,1727477443179,-151.039,0.000349,8]
[339362502,1727477443189,-151.0,0.0003538,14]
[339362503,1727477443199,-288.892776,0.0003538,14]
[339362504,1727477443211,-288.892776,0.0003538,14]
[339362505,1727477443222,-4014.48,0.000354,14]
[339362506,1727477443233,-1439.56,0.000354,14]
[339362507,1727477443244,-2031.5,0.000354,14]
[339362508,1727477443255,-165.47,0.000354,14]
[339362509,1727477443265,-157.412191,0.000354,14]
[339362510,1727477443275,-157.412183,0.000354,14]
[339362511,1727477443284,-151.0,0.000354,14]
[339362512,1727477443294,-1330.40643917,0.000354,7]
[339362513,1727477443303,-151.0,0.000354,14]
[339362514,1727477443314,-504.0,0.00035441,2]
[339362515,1727477443324,-999.0,0.00035616,120]
[339362516,1727477443334,-150.95099031,0.00035616,120]
[339362517,1727477443346,-398.895202,0.00035616,120]
[339362518,1727477443357,-400.0,0.00035616,2]
[339362519,1727477443367,-263.0,0.00036,2]
[339362520,1727477443377,-999.0,0.00036712,120]
[339362521,1727477443387,-1330.40643917,0.000372,7]
[339362522,1727477443397,-159.566876,0.00037443,2]
[339362523,1727477443408,-475.0,0.00037549,2]
[339362524,1727477443420,-504.0,0.00037656,2]
[339362525,1727477443430,-999.0,0.00037808,120]
[339362526,1727477443441,-504.0,0.00037973,2]
[339362527,1727477443451,-375.1999999,0.00038164,10]
[339362528,1727477443462,-151.0,0.00038382,15]
[339362529,1727477443471,-153.0,0.00038802,2]
[339362530,1727477443482,-209.1919512,0.00038802,2]
[339362531,1727477443504,-153.0,0.00038802,2]
[339362532,1727477443515,-209.1919512,0.00038802,2]
[339362533,1727477443524,-208.1711824,0.00038802,2]
[339362534,1727477443535,-153.0,0.00038802,2]
[339362535,1727477443546,-164.199017,0.00038802,14]
[339362536,1727477443558,-164.199017,0.00038802,14]
[339362537,1727477443567,-151.0,0.00038802,14]
[339362538,1727477443576,-999.0,0.00038904,120]
[339362539,1727477443587,-1452.12491164,0.00039,11]
[339362540,1727477443598,-157.632964,0.00039,14]
[339362541,1727477443608,-157.632964,0.00039,14]
[339362542,1727477443617,-163.0,0.0003939,120]
[339362543,1727477443627,-500.0,0.00039499,2]
[339362544,1727477443636,-500.0,0.00039499,2]
[339362545,1727477443646,-790.24637963,0.00039499,2]
[339362546,1727477443655,-513.29,0.000395,14]
[339362547,1727477443666,-504.0,0.00039871,14]
[339362548,1727477443675,-4493.89480236,0.0003989,30]
[339362549,1727477443687,-271.935364,0.0003989,14]
[339362550,1727477443699,-165.47,0.000399,14]
[339362551,1727477443711,-337.39567525,0.0004,120]
[339362552,1727477443720,-254.077275,0.0004,30]
[339362553,1727477443731,-999.0,0.0004,120]
[339362554,1727477443743,-151.0,0.00040141,15]
[339362555,1727477443753,-500.0,0.00040279,2]
[339362556,1727477443765,-153.0,0.00040317,2]
[339362557,1727477443775,-153.0,0.00040317,2]
[339362558,1727477443785,-153.0,0.00040317,2]
[339362559,1727477443795,-153.0,0.00040317,2]
[339362560,1727477443804,-600.0,0.00040319,2]
[339362561,1727477443814,-153.0,0.00040454,2]
[339362562,1727477443824,-153.0,0.00040454,2]
[339362563,1727477443835,-209.1919512,0.00040454,2]
[339362564,1727477443846,-153.0,0.00040454,2]
[339362565,1727477443857,-209.1919512,0.00040454,2]
[339362566,1727477443976,-209.1919512,0.00040454,2]
[339362567,1727477443987,-153.0,0.00040454,2]
[339362568,1727477443997,-153.0,0.00040454,2]
[339362569,1727477444006,-153.0,0.00040454,2]
[339362570,1727477444015,-208.7741816,0.00040454,2]
[339362571,1727477444024,-153.0,0.00040454,2]
[339362572,1727477444034,-153.0,0.00040454,2]
[339362573,1727477444044,-23164.65574857,0.00040491,2]
[339362574,1727477444054,-6230.18678426,0.00040491,2]
[339362575,1727477444065,-288.892776,0.00040491,14]
[339362576,1727477444077,-288.892773,0.00040491,14]
[339362577,1727477444087,-151.0,0.00040491,14]
[339362578,1727477444098,-151.0,0.00040491,14]
[339362579,1727477444107,-164.199017,0.00040739,14]
[339362580,1727477444117,-164.199017,0.00040739,14]
[339362581,1727477444127,-151.0,0.00040739,14]
[339362582,1727477444138,-600.0,0.00040739,2]
[339362583,1727477444148,-500.0,0.00040873,5]
[339362584,1727477444158,-160.0,0.00040899,30]
[339362585,1727477444169,-161.95168062,0.00040899,30]
[339362586,1727477444180,-500000.0,0.000409,30]
[339362587,1727477444191,-164.199017,0.000409,14]
[339362588,1727477444201,-164.199017,0.000409,14]
[339362589,1727477444210,-151.0,0.000409,14]
[339362590,1727477444220,-157.632964,0.000409,14]
[339362591,1727477444229,-157.632964,0.000409,14]
[339362592,1727477444239,-151.0,0.000409,14]
[339362593,1727477444248,-400.0,0.00040952,2]
[339362594,1727477444258,-30918.28779521,0.00041,30]
[339362595,1727477444273,-26723.17370863,0.00041,30]
[339362596,1727477444320,-667.4614823,0.00041,30]
[339362597,1727477444331,-3656.22911853,0.00041,30]
[339362598,1727477444341,-164.199017,0.00041,14]
[339362599,1727477444350,-164.199017,0.00041,14]
[339362600,1727477444359,-157.632964,0.00041,14]
[339362601,1727477444368,-157.632968,0.00041,14]
[339362602,1727477444377,-201.950324,0.00041,14]
[339362603,1727477444387,-152.0,0.00041041,31]
[339362604,1727477444396,-999.0,0.00041095,120]
[339362605,1727477444406,-4014.48,0.000411,14]
[339362606,1727477444415,-1439.56,0.000411,14]
[339362607,1727477444424,-2031.5,0.000411,14]
[339362608,1727477444436,-600.0,0.00041159,2]
[339362609,1727477444446,-153.0,0.00041276,2]
[339362610,1727477444455,-153.0,0.00041276,2]
[339362611,1727477444464,-153.0,0.00041276,2]
[339362612,1727477444473,-153.0,0.00041276,2]
[339362613,1727477444483,-153.0,0.00041276,2]
[339362614,1727477444492,-153.0,0.00041276,2]
[339362615,1727477444502,-152.0,0.00041361,31]
[339362616,1727477444511,-1145.12402107,0.00041421,7]
[339362617,1727477444520,-398.895202,0.00041553,120]
[339362618,1727477444529,-600.0,0.00041579,2]
[339362619,1727477444538,-152.0,0.0004168,31]
[339362620,1727477444547,-201.27927931,0.00041818,7]
[339362621,1727477444557,-1000.0,0.00041832,7]
[339362622,1727477444566,-160.0,0.00041879,30]
[339362623,1727477444575,-1427.17627679,0.0004188,4]
[339362624,1727477444644,-279.6601696,0.00040454,2]
[339362625,1727477444654,-979.8440134,0.0004188,4]
[339362638,1727477446365,-2500.0,0.00022025,2]
[339362640,1727477446375,-163.79505621,0.00029466,2]
[339362642,1727477446385,-4767.18735905,0.00029466,2]
[339362732,1727478428146,-415.234102,0.00018904,2]
[339362733,1727478428172,-225.0,0.00019,2]
[339362734,1727478428194,-105.16181601,0.000211,2]
[339362736,1727478444101,-44.83818399,0.000211,2]
[339362737,1727478444125,-2500.0,0.00022017,2]
[339362738,1727478444149,-252.32694804,0.00025,7]
[339362794,1727478632631,-248.0,0.00025,7]
[339362795,1727478632643,-415.234102,0.00025119,2]
[339362796,1727478632653,-150.0,0.00025723,2]
[339362797,1727478632663,-153.0,0.00027188,2]
[339362798,1727478632675,-153.0,0.00027188,2]
[339362799,1727478632686,-153.0,0.00027188,2]
[339362800,1727478632696,-10.165898,0.00027188,2]
[339362866,1727478640701,-142.834102,0.00027188,2]
[339362867,1727478640711,-153.0,0.00027188,2]
[339362868,1727478640721,-14.96202378,0.00027188,2]
[339363306,1727478646702,-138.03797622,0.00027188,2]
[339363308,1727478646713,-153.0,0.00027188,2]
[339363310,1727478646722,-153.0,0.00027188,2]
[339363312,1727478646731,-153.0,0.00027188,2]
[339363314,1727478646740,-153.0,0.00027188,2]
[339363316,1727478646749,-153.0,0.00027188,2]
[339363318,1727478646758,-159.566876,0.00027382,2]
[339363320,1727478646767,-150.0,0.00027686,2]
[339363322,1727478646777,-183.219905,0.00027693,2]
[339363324,1727478646787,-319.0204031,0.0002797,2]
[339363326,1727478646796,-183.219905,0.00028415,2]
[339363328,1727478646806,-193.5676481,0.00028803,2]
[339363331,1727478646826,-445.308,0.00028954,21]
[339363333,1727478646835,-183.219905,0.00029136,2]
[339363335,1727478646844,-502.46159448,0.000294,5]
[339363337,1727478646853,-214.598977,0.00029562,2]
[339363339,1727478646863,-150.0,0.00029575,5]
[339363340,1727478646872,-914.66,0.00029775,2]
[339363342,1727478646882,-164.0,0.0003,2]
[339363344,1727478646891,-914.66,0.00030049,2]
[339363346,1727478646900,-914.66,0.00030323,2]
[339363348,1727478646909,-914.66,0.00030597,2]
[339363350,1727478646919,-914.66,0.00030871,2]
[339363352,1727478646928,-914.66,0.00031145,2]
[339363354,1727478646938,-152.79482226,0.0003124,2]
[339363355,1727478646949,-215.58,0.000313,7]
[339363356,1727478646960,-415.234102,0.00031334,2]
[339363357,1727478646971,-914.66,0.00031419,2]
[339363358,1727478646981,-164.0,0.00031644,2]
[339363359,1727478646991,-914.66,0.00031693,2]
[339363360,1727478647001,-914.66,0.00031967,2]
[339363361,1727478647011,-914.66,0.00032241,2]
[339363362,1727478647022,-914.66,0.00032515,2]
[339363363,1727478647033,-914.66,0.00032789,2]
[339363364,1727478647045,-914.66,0.00033063,2]
[339363365,1727478647055,-164.0,0.00033226,2]
[339363366,1727478647067,-500.0,0.00033336,2]
[339363367,1727478647076,-350.92453782,0.00033337,2]
[339363559,1727478680847,150.0,0.000214,2]
[339363560,1727478738406,38.17832541,0.00022359,2]
[339363568,1727479549175,-9240.83714222,0.00015,2]
[339363569,1727479549197,-209.52019565,0.00018795,2]
[339363570,1727479549219,-300.0,0.00018894,2]
[339363571,1727479549240,-414.263753,0.00018904,2]
[339363572,1727479549263,-5068.568597,0.00021,2]
[339363573,1727479549284,-203.04,0.000214,2]
[339363574,1727479549306,-188.16619159,0.00022359,2]
[339363575,1727479549328,-226.344517,0.00022638,2]
[339363576,1727479549350,-163.629971,0.00022802,2]
[339363577,1727479549371,-226.344517,0.00022918,2]
[339363578,1727479549392,-3000.0,0.00022989,2]
[339363579,1727479549413,-674.138064,0.00022989,2]
[339363580,1727479549436,-226.344517,0.00023197,2]
[339363581,1727479549459,-244.372864,0.00023242,2]
[339363582,1727479549481,-618.9958446,0.00023262,2]
[339363583,1727479549503,-244.372864,0.00023306,2]
[339363584,1727479549526,-244.372864,0.0002337,2]
[339363585,1727479549550,-244.372864,0.00023434,2]
[339363586,1727479549571,-226.344517,0.00023477,2]
[339363587,1727479549593,-244.372864,0.00023497,2]
[339363588,1727479549616,-244.372864,0.00023561,2]
[339363589,1727479549638,-244.372864,0.00023625,2]
[339363590,1727479549660,-674.138064,0.00023674,2]
[339363591,1727479549683,-244.372864,0.00023689,2]
[339363592,1727479549705,-244.372864,0.00023752,2]
[339363593,1727479549727,-244.372864,0.00023816,2]
[339363594,1727479549749,-244.372864,0.0002388,2]
[339363595,1727479549771,-244.372864,0.00023944,2]
[339363596,1727479549793,-244.372864,0.00024007,2]
[339363597,1727479549814,-244.372864,0.00024071,2]
[339363598,1727479549836,-244.372864,0.00024135,2]
[339363599,1727479549858,-244.372864,0.00024199,2]
[339363600,1727479549880,-244.372864,0.00024263,2]
[339363601,1727479549902,-244.372864,0.00024326,2]
[339363602,1727479549924,-674.138064,0.00024359,2]
[339363603,1727479549947,-244.372864,0.0002439,2]
[339363604,1727479549970,-244.372864,0.00024454,2]
[339363605,1727479549997,-414.263753,0.00025119,2]
[339363606,1727479550022,-16962.08046398,0.0002606,2]
[339363607,1727479553097,-10651.01696799,0.0002606,2]
[339363608,1727479553118,-8543.4666593,0.0002606,2]
[339363609,1727479553140,-1733.62485371,0.0002606,2]
[339363610,1727479553162,-500.0,0.00026159,2]
[339363611,1727479553184,-500.0,0.00026159,2]
[339363612,1727479553207,-500.0,0.00026159,2]
[339363613,1727479553229,-500.0,0.00026159,2]
[339363614,1727479553252,-500.0,0.00026159,2]
[339363615,1727479553275,-500.0,0.00026159,2]
[339363616,1727479553298,-500.0,0.00026159,2]
[339363617,1727479553324,-500.0,0.00026159,2]
[339363618,1727479553348,-500.0,0.00026159,2]
[339363619,1727479553372,-500.0,0.00026159,2]
[339363620,1727479553398,-500.0,0.00026159,2]
[339363621,1727479553423,-500.0,0.00026159,2]
[339363622,1727479553447,-199.42373963,0.00026159,2]
[339363623,1727479553468,-500.0,0.00027109,2]
[339363624,1727479553489,-686.64,0.00027109,2]
[339363625,1727479553512,-500.0,0.00027109,2]
[339363626,1727479553534,-500.0,0.00027109,2]
[339363627,1727479553555,-500.0,0.00027109,2]
[339363628,1727479553576,-500.0,0.00027109,2]
[339363629,1727479553596,-153.0,0.0002721,2]
[339363630,1727479553617,-153.0,0.0002721,2]
[339363631,1727479553639,-153.0,0.0002721,2]
[339363632,1727479553660,-153.0,0.0002721,2]
[339363633,1727479553681,-153.0,0.0002721,2]
[339363634,1727479553702,-153.0,0.0002721,2]
[339363635,1727479553724,-153.0,0.0002721,2]
[339363636,1727479553745,-153.0,0.0002721,2]
[339363637,1727479553766,-153.0,0.0002721,2]
[339363638,1727479553788,-153.0,0.0002721,2]
[339363639,1727479553810,-153.0,0.0002721,2]
[339363640,1727479553831,-153.0,0.0002721,2]
[339363641,1727479553853,-153.0,0.0002721,2]
[339363642,1727479553876,-153.0,0.0002721,2]
[339363643,1727479553897,-153.0,0.0002721,2]
[339363644,1727479553918,-153.0,0.0002721,2]
[339363645,1727479553940,-153.0,0.0002721,2]
[339363646,1727479553962,-153.0,0.0002721,2]
[339363647,1727479553988,-153.0,0.0002721,2]
[339363648,1727479554011,-153.0,0.0002721,2]
[339363649,1727479554035,-153.0,0.0002721,2]
[339363650,1727479554057,-153.0,0.0002721,2]
[339363651,1727479554081,-153.0,0.0002721,2]
[339363652,1727479554103,-153.0,0.0002721,2]
[339363653,1727479554125,-153.0,0.0002721,2]
[339363654,1727479554147,-153.0,0.0002721,2]
[339363655,1727479554168,-153.0,0.0002721,2]
[339363656,1727479554189,-153.0,0.0002721,2]
[339363657,1727479554212,-153.0,0.0002721,2]
[339363658,1727479554234,-153.0,0.0002721,2]
[339363659,1727479554358,-153.0,0.0002721,2]
[339363660,1727479554383,-153.0,0.0002721,2]
[339363661,1727479554406,-153.0,0.0002721,2]
[339363662,1727479554429,-153.0,0.0002721,2]
[339363663,1727479554451,-153.0,0.0002721,2]
[339363664,1727479554475,-153.0,0.0002721,2]
[339363665,1727479554498,-153.0,0.0002721,2]
[339363666,1727479554521,-153.0,0.0002721,2]
[339363667,1727479554545,-153.0,0.0002721,2]
[339363668,1727479554568,-153.0,0.0002721,2]
[339363669,1727479554591,-153.0,0.0002721,2]
[339363670,1727479554613,-153.0,0.0002721,2]
[339363671,1727479554636,-153.0,0.0002721,2]
[339363672,1727479554659,-153.0,0.0002721,2]
[339363673,1727479554683,-153.0,0.0002721,2]
[339363674,1727479554707,-153.0,0.0002721,2]
[339363675,1727479554731,-153.0,0.0002721,2]
[339363676,1727479554753,-153.0,0.0002721,2]
[339363677,1727479554775,-153.0,0.0002721,2]
[339363678,1727479554796,-153.0,0.0002721,2]
[339363679,1727479554818,-153.0,0.0002721,2]
[339363680,1727479554841,-153.0,0.0002721,2]
[339363681,1727479554862,-153.0,0.0002721,2]
[339363682,1727479554884,-153.0,0.0002721,2]
[339363683,1727479554907,-153.0,0.0002721,2]
[339363684,1727479554930,-153.0,0.0002721,2]
[339363685,1727479554952,-153.0,0.0002721,2]
[339363686,1727479554977,-153.0,0.0002721,2]
[339363687,1727479555002,-153.0,0.0002721,2]
[339363688,1727479555024,-153.0,0.0002721,2]
[339363689,1727479555055,-153.0,0.0002721,2]
[339363690,1727479555079,-153.0,0.0002721,2]
[339363691,1727479555103,-153.0,0.0002721,2]
[339363692,1727479555124,-153.0,0.0002721,2]
[339363693,1727479555146,-153.0,0.0002721,2]
[339363694,1727479555169,-153.0,0.0002721,2]
[339363695,1727479555191,-153.0,0.0002721,2]
[339363696,1727479555214,-153.0,0.0002721,2]
[339363697,1727479555236,-153.0,0.0002721,2]
[339363698,1727479555257,-153.0,0.0002721,2]
[339363699,1727479555277,-153.0,0.0002721,2]
[339363700,1727479555301,-153.0,0.0002721,2]
[339363701,1727479555323,-153.0,0.0002721,2]
[339363702,1727479555345,-153.0,0.0002721,2]
[339363703,1727479555367,-153.0,0.0002721,2]
[339363704,1727479555388,-153.0,0.0002721,2]
[339363705,1727479555411,-153.0,0.0002721,2]
[339363706,1727479555433,-153.0,0.0002721,2]
[339363707,1727479555455,-153.0,0.0002721,2]
[339363708,1727479555476,-500.0,0.00027383,2]
[339363709,1727479555498,-686.64,0.00027383,2]
[339363710,1727479555520,-500.0,0.00027383,2]
[339363711,1727479555544,-500.0,0.00027383,2]
[339363712,1727479555566,-500.0,0.00027383,2]
[339363713,1727479555590,-500.0,0.00027383,2]
[339363714,1727479555612,-310.08,0.00027657,2]
[339363715,1727479555633,-686.64,0.00027657,2]
[339363716,1727479555655,-500.0,0.00027657,2]
[339363717,1727479555676,-405.44,0.00027657,2]
[339363718,1727479555699,-500.0,0.00027657,2]
[339363719,1727479555722,-686.64,0.00027931,2]
[339363720,1727479555742,-500.0,0.00027931,2]
[339363721,1727479555764,-500.0,0.00027931,2]
[339363722,1727479555787,-686.64,0.00028205,2]
[339363723,1727479555810,-500.0,0.00028205,2]
[339363724,1727479555832,-500.0,0.00028205,2]
[339363725,1727479555854,-356.246,0.00028271,19]
[339363726,1727479555877,-709.01,0.00028469,3]
[339363727,1727479555900,-686.64,0.00028479,2]
[339363728,1727479555923,-500.0,0.00028479,2]
[339363729,1727479555945,-500.0,0.00028479,2]
[339363730,1727479555968,-8509.15,0.00028743,3]
[339363731,1727479555994,-686.64,0.00028753,2]
[339363732,1727479556018,-566.54905877,0.00028753,2]
[339363733,1727479556042,-500.0,0.00028753,2]
[339363734,1727479556065,-686.64,0.00029027,2]
[339363735,1727479556087,-500.0,0.00029027,2]
[339363736,1727479556109,-686.64,0.00029301,2]
[339363737,1727479556132,-500.0,0.00029301,2]
[339363738,1727479556153,-150.0,0.0002931,5]
[339363739,1727479556175,-236.33,0.00029318,3]
[339363740,1727479556197,-377.74185423,0.00029348,14]
[339363741,1727479556221,-215.04971248,0.00029357,2]
[339363742,1727479556245,-500.0,0.00029357,2]
[339363743,1727479556268,-500.0,0.00029357,2]
[339363744,1727479556292,-580.3177437,0.00029357,2]
[339363745,1727479556313,-57144.3090697,0.00029358,4]
[339363746,1727479556334,-8110.41750924,0.00029358,4]
[339363748,1727479626099,-500.0,0.00023815,2]
[339363749,1727479626123,-500.0,0.00024089,2]
[339363750,1727479626147,-500.0,0.00024363,2]
[339363751,1727479626172,-500.0,0.00024637,2]
[339363752,1727479626194,-500.0,0.00024911,2]
[339363753,1727479626215,-500.0,0.00025185,2]
[339363754,1727479626236,-500.0,0.00025459,2]
[339363755,1727479626259,-500.0,0.00025733,2]
[339363756,1727479626280,-500.0,0.00026007,2]
[339363757,1727479626302,-500.0,0.00026281,2]
[339363758,1727479626322,-500.0,0.00026555,2]
[339363759,1727479626345,-500.0,0.00026829,2]
[339363760,1727479626366,-500.0,0.00027103,2]
[339363761,1727479626387,-300.0,0.00027376,2]
[339363762,1727479626408,-500.0,0.00027377,2]
[339363763,1727479626428,-159.566876,0.00027467,2]
[339363764,1727479626449,-500.0,0.00027651,2]
[339363765,1727479626471,-500.0,0.00027925,2]
[339363766,1727479626492,-500.0,0.00028199,2]
[339363767,1727479626513,-500.0,0.00028473,2]
[339363768,1727479626533,-150.0,0.00028562,5]
[339363769,1727479626554,-500.0,0.00028747,2]
[339363770,1727479626576,-500.0,0.00029021,2]
[339363771,1727479626597,-299.64,0.00029295,2]
[339363772,1727479626621,-500.0,0.00029357,2]
[339363773,1727479626644,-188.82485996,0.00029357,2]
[339363774,1727479626665,-4271.73332965,0.00029358,2]
[339363775,1727479626686,-26834.29719136,0.00029358,4]
[339363776,1727479626706,-500.0,0.00029398,2]
[339363777,1727479626726,-500.0,0.00029398,2]
[339363778,1727479626747,-500.0,0.00029398,2]
[339363779,1727479626781,-500.0,0.00029398,2]
[339363780,1727479626804,-500.0,0.00029398,2]
[339363781,1727479626825,-500.0,0.00029398,2]
[339363782,1727479626852,-500.0,0.00029398,2]
[339363783,1727479626879,-500.0,0.00029398,2]
[339363784,1727479626899,-500.0,0.00029398,2]
[339363785,1727479626921,-500.0,0.00029398,2]
[339363786,1727479626942,-500.0,0.00029398,2]
[339363787,1727479626963,-500.0,0.00029398,2]
[339363788,1727479626984,-500.0,0.00029398,2]
[339363789,1727479627005,-502.02,0.00029398,2]